fUST/lending_fUST_20241229
["ID","MTS","AMOUNT","RATE_DAILY","PERIOD"]
[346972969,1735443033066,-500.66775044,9.999e-05,2]
[346972970,1735443033076,-502.83193362,9.999e-05,2]
[346972971,1735443033086,-501.01210622,9.999e-05,2]
[346972972,1735443033095,-500.60606747,9.999e-05,2]
[346972973,1735443033104,-503.22935648,9.999e-05,2]
[346972974,1735443033114,-503.0934298,9.999e-05,2]
[346972975,1735443033123,-502.59152787,9.999e-05,2]
[346972976,1735443033133,-522.95610636,9.999e-05,2]
[346972977,1735443033142,-500.0,9.999e-05,2]
[346972978,1735443033152,-502.97851097,9.999e-05,2]
[346972979,1735443033161,-330.02242097,9.999e-05,2]
[346972980,1735443033174,-170.3086552,9.999e-05,2]
[346972981,1735443033184,-504.06286652,9.999e-05,2]
[346972982,1735443033193,-275.99384256,9.999e-05,2]
[346972983,1735443033203,-490.86538811,9.999e-05,2]
[346973012,1735443040278,-1e-08,9.997e-05,2]
[346973057,1735443043010,-499.99999999,9.997e-05,2]
[346973059,1735443043022,-13.3925051,9.999e-05,2]
[346973061,1735443043033,-500.0,9.999e-05,2]
[346973063,1735443043043,-503.06423119,9.999e-05,2]
[346973064,1735443043053,-503.08956328,9.999e-05,2]
[346973065,1735443043064,-504.20325122,9.999e-05,2]
[346973067,1735443043075,-502.41957187,9.999e-05,2]
[346973069,1735443043086,-500.84693433,9.999e-05,2]
[346973071,1735443043097,-501.53367465,9.999e-05,2]
[346973072,1735443043108,-502.410943,9.999e-05,2]
[346973073,1735443043119,-503.45342686,9.999e-05,2]
[346973075,1735443043131,-505.92169301,9.999e-05,2]
[346973077,1735443043142,-501.91773674,9.999e-05,2]
[346973079,1735443043153,-503.33465018,9.999e-05,2]
[346973081,1735443043164,-501.08261772,9.999e-05,2]
[346973082,1735443043175,-500.53328216,9.999e-05,2]
[346973083,1735443043186,-347.50255131,9.999e-05,2]
[346973084,1735443043198,-502.11166888,9.999e-05,2]
[346973085,1735443043209,-501.40647764,9.999e-05,2]
[346973086,1735443043221,-500.0,9.999e-05,2]
[346973087,1735443043232,-268.89705276,9.999e-05,2]
[346973088,1735443043243,-409.5270049,9.999e-05,2]
[346973089,1735443043257,-92.43379932,9.999e-05,2]
[346973090,1735443043268,-423.08263076,9.999e-05,2]
[346973100,1735443139984,764.975697,8.999e-05,2]
[346973101,1735443266291,2309.81101967,8.952e-05,2]
[346973102,1735443274332,2605.32293229,8.952e-05,2]
[346973103,1735443303107,1034.15274217,0.00025,120]
[346973104,1735443534991,250.0,8.998e-05,2]
[346973106,1735443728410,4069.89035104,8.997e-05,2]
[346973107,1735443728577,10000.0,8.997e-05,2]
[346973108,1735443728612,10000.0,8.997e-05,2]
[346973109,1735443728646,830.10964896,8.997e-05,2]
[346973110,1735443781920,400.0,8.952e-05,2]
[346973111,1735443791151,400.0,8.952e-05,2]
[346973112,1735443909271,177.7651895,8.952e-05,2]
[346973113,1735443917050,451.85580639,8.952e-05,2]
[346973114,1735443949977,894.2495993,8.839e-05,2]
[346973115,1735443959138,-2985.9119606,9.042e-05,2]
[346973117,1735444029128,-2294.13206231,9.042e-05,2]
[346973118,1735444034091,-277.99055866,9.042e-05,2]
[346973119,1735444039097,-89.39072523,9.042e-05,2]
[346973120,1735444039125,-169.467304,9.067e-05,2]
[346973121,1735444039147,-300.0,9.067e-05,2]
[346973122,1735444039169,-435.06186402,9.068e-05,2]
[346973123,1735444045100,-1531.19981494,9.068e-05,2]
[346973124,1735444130624,4768.8840777,8.995e-05,2]
[346973125,1735444163147,-1061.2395144,9.067e-05,2]
[346973126,1735444163167,-4932.45714664,9.068e-05,2]
[346973127,1735444163189,-169.467304,9.112e-05,2]
[346973128,1735444163210,-300.0,9.993e-05,2]
[346973129,1735444163233,-500.0,9.994e-05,2]
[346973130,1735444163254,-500.0,9.994e-05,2]
[346973131,1735444163277,-500.0,9.994e-05,2]
[346973132,1735444163299,-500.0,9.994e-05,2]
[346973133,1735444163322,-500.0,9.994e-05,2]
[346973134,1735444163342,-500.0,9.994e-05,2]
[346973135,1735444163365,-500.0,9.994e-05,2]
[346973136,1735444163386,-448.11857731,9.994e-05,2]
[346973137,1735444163408,-500.0,9.994e-05,2]
[346973138,1735444163430,-408.85710238,9.994e-05,2]
[346973139,1735444163453,-500.0,9.994e-05,2]
[346973140,1735444163474,-500.0,9.994e-05,2]
[346973141,1735444163496,-500.0,9.994e-05,2]
[346973142,1735444163519,-500.0,9.994e-05,2]
[346973143,1735444163540,-500.0,9.994e-05,2]
[346973144,1735444163563,-500.0,9.994e-05,2]
[346973145,1735444163587,-500.0,9.994e-05,2]
[346973146,1735444163609,-192.10156965,9.994e-05,2]
[346973147,1735444163633,-500.0,9.994e-05,2]
[346973148,1735444163656,-500.0,9.994e-05,2]
[346973149,1735444163679,-500.0,9.994e-05,2]
[346973150,1735444163699,-500.0,9.994e-05,2]
[346973151,1735444163722,-250.0,9.994e-05,2]
[346973152,1735444163743,-500.0,9.994e-05,2]
[346973153,1735444163763,-180.08298264,9.994e-05,2]
[346973154,1735444163785,-589.36414949,9.994e-05,2]
[346973155,1735444163805,-500.0,9.995e-05,2]
[346973156,1735444163826,-501.33246981,9.995e-05,2]
[346973157,1735444163845,-500.0,9.995e-05,2]
[346973158,1735444163865,-500.0,9.995e-05,2]
[346973159,1735444163885,-500.0,9.995e-05,2]
[346973160,1735444163907,-500.0,9.995e-05,2]
[346973161,1735444163931,-500.0,9.995e-05,2]
[346973162,1735444163952,-500.0,9.995e-05,2]
[346973163,1735444163972,-500.0,9.995e-05,2]
[346973164,1735444163993,-500.0,9.995e-05,2]
[346973165,1735444164013,-500.0,9.995e-05,2]
[346973166,1735444164036,-575.57,9.995e-05,2]
[346973167,1735444164059,-525.66,9.995e-05,2]
[346973168,1735444164079,-500.0,9.995e-05,2]
[346973169,1735444164102,-501.84941109,9.995e-05,2]
[346973170,1735444164122,-500.0,9.995e-05,2]
[346973171,1735444164146,-500.0,9.996e-05,2]
[346973172,1735444164261,-279.75515246,9.996e-05,2]
[346973173,1735444164287,-500.0,9.996e-05,2]
[346973174,1735444164307,-500.0,9.996e-05,2]
[346973175,1735444164329,-389.62087041,9.996e-05,2]
[346973176,1735444164350,-500.0,9.996e-05,2]
[346973177,1735444164370,-500.0,9.996e-05,2]
[346973178,1735444164390,-500.0,9.996e-05,2]
[346973179,1735444164411,-500.0,9.996e-05,2]
[346973180,1735444164431,-500.0,9.996e-05,2]
[346973181,1735444164453,-500.0,9.996e-05,2]
[346973182,1735444164474,-500.77235716,9.996e-05,2]
[346973183,1735444164495,-492.02654873,9.996e-05,2]
[346973184,1735444164517,-500.0,9.996e-05,2]
[346973185,1735444164539,-500.0,9.996e-05,2]
[346973186,1735444164558,-500.0,9.996e-05,2]
[346973187,1735444164578,-500.0,9.996e-05,2]
[346973188,1735444164600,-500.0,9.996e-05,2]
[346973189,1735444164623,-500.0,9.996e-05,2]
[346973190,1735444164646,-553.20571383,9.996e-05,2]
[346973191,1735444164667,-500.0,9.996e-05,2]
[346973192,1735444164689,-500.0,9.996e-05,2]
[346973193,1735444164710,-500.0,9.996e-05,2]
[346973194,1735444164732,-500.0,9.996e-05,2]
[346973195,1735444164753,-500.3347767,9.996e-05,2]
[346973196,1735444164774,-500.0,9.996e-05,2]
[346973197,1735444164796,-500.0,9.996e-05,2]
[346973198,1735444164819,-500.0,9.996e-05,2]
[346973199,1735444164841,-500.0,9.996e-05,2]
[346973200,1735444164862,-500.0,9.996e-05,2]
[346973201,1735444164883,-504.35,9.996e-05,2]
[346973202,1735444164903,-500.0,9.996e-05,2]
[346973203,1735444164925,-500.0,9.996e-05,2]
[346973204,1735444164946,-500.0,9.996e-05,2]
[346973205,1735444164970,-500.0,9.996e-05,2]
[346973206,1735444164992,-500.0,9.996e-05,2]
[346973207,1735444165016,-500.0,9.996e-05,2]
[346973208,1735444165039,-500.0,9.996e-05,2]
[346973209,1735444165064,-2177.29,9.996e-05,2]
[346973210,1735444165085,-241.14426071,9.996e-05,2]
[346973211,1735444165106,-500.0,9.996e-05,2]
[346973212,1735444165127,-500.0,9.996e-05,2]
[346973213,1735444165149,-500.0,9.996e-05,2]
[346973214,1735444165171,-500.0,9.996e-05,2]
[346973215,1735444165193,-500.0,9.996e-05,2]
[346973216,1735444165214,-500.0,9.996e-05,2]
[346973217,1735444165237,-500.0,9.996e-05,2]
[346973218,1735444165258,-500.0,9.996e-05,2]
[346973219,1735444165283,-500.0,9.996e-05,2]
[346973220,1735444165304,-238.07794607,9.996e-05,2]
[346973221,1735444165326,-333.2,9.996e-05,2]
[346973222,1735444165347,-238.08,9.996e-05,2]
[346973223,1735444165371,-500.0,9.996e-05,2]
[346973224,1735444165393,-500.0,9.996e-05,2]
[346973225,1735444165416,-500.0,9.996e-05,2]
[346973226,1735444165438,-500.0,9.996e-05,2]
[346973227,1735444165460,-500.0,9.996e-05,2]
[346973228,1735444165480,-500.0,9.996e-05,2]
[346973229,1735444165501,-500.0,9.996e-05,2]
[346973230,1735444165522,-500.0,9.996e-05,2]
[346973231,1735444165542,-620.15276125,9.996e-05,2]
[346973232,1735444165564,-400.31188979,9.996e-05,2]
[346973233,1735444165585,-500.0,9.996e-05,2]
[346973234,1735444165605,-500.0,9.996e-05,2]
[346973235,1735444165627,-500.0,9.996e-05,2]
[346973236,1735444165648,-500.0,9.996e-05,2]
[346973237,1735444165669,-500.0,9.996e-05,2]
[346973238,1735444165689,-500.0,9.996e-05,2]
[346973239,1735444165711,-500.0,9.996e-05,2]
[346973240,1735444165732,-500.0,9.996e-05,2]
[346973241,1735444165752,-500.0,9.996e-05,2]
[346973242,1735444165773,-502.75648706,9.996e-05,2]
[346973243,1735444165792,-500.0,9.996e-05,2]
[346973244,1735444165813,-500.0,9.996e-05,2]
[346973245,1735444165836,-500.0,9.996e-05,2]
[346973246,1735444165859,-500.0,9.996e-05,2]
[346973247,1735444165881,-500.0,9.996e-05,2]
[346973248,1735444165902,-298.92942282,9.996e-05,2]
[346973274,1735444232405,-196.220806,9.042e-05,2]
[346973275,1735444232416,-375.79356461,9.995e-05,2]
[346973276,1735444232426,-500.0,9.995e-05,2]
[346973277,1735444232436,-500.0,9.995e-05,2]
[346973278,1735444232446,-531.37,9.995e-05,2]
[346973279,1735444232456,-226.83759371,9.995e-05,2]
[346973280,1735444232465,-287.0,9.995e-05,2]
[346973281,1735444232475,-500.0,9.995e-05,2]
[346973282,1735444232485,-500.0,9.995e-05,2]
[346973283,1735444232505,-500.0,9.995e-05,2]
[346973284,1735444232515,-462.08245134,9.995e-05,2]
[346973285,1735444232529,-39.82320999,9.995e-05,2]
[346973286,1735444232539,-500.0,9.995e-05,2]
[346973287,1735444232549,-500.0,9.995e-05,2]
[346973288,1735444232559,-500.0,9.995e-05,2]
[346973289,1735444232568,-501.84019742,9.995e-05,2]
[346973290,1735444232579,-500.0,9.995e-05,2]
[346973291,1735444232589,-500.0,9.995e-05,2]
[346973292,1735444232599,-201.07057718,9.996e-05,2]
[346973293,1735444232609,-500.0,9.996e-05,2]
[346973294,1735444232619,-500.0,9.996e-05,2]
[346973295,1735444232629,-500.0,9.996e-05,2]
[346973296,1735444232639,-500.0,9.996e-05,2]
[346973297,1735444232649,-500.68779555,9.996e-05,2]
[346973298,1735444232659,-500.0,9.996e-05,2]
[346973299,1735444232669,-272.11921585,9.996e-05,2]
[346973300,1735444232679,-502.3965026,9.996e-05,2]
[346973301,1735444232689,-500.0,9.996e-05,2]
[346973302,1735444232698,-431.3908509,9.996e-05,2]
[346973320,1735444238308,-355.32346046,9.995e-05,2]
[346973321,1735444238320,-145.9537396,9.995e-05,2]
[346973322,1735444238329,-604.04368356,9.995e-05,2]
[346973323,1735444238339,-573.20634471,9.995e-05,2]
[346973324,1735444238348,-500.0,9.995e-05,2]
[346973326,1735444238361,-182.24668299,9.995e-05,2]
[346973327,1735444238371,-71.45526329,9.996e-05,2]
[346973329,1735444238380,-569.62,9.996e-05,2]
[346973331,1735444238390,-4179.12,9.996e-05,2]
[346973333,1735444238400,-500.0,9.996e-05,2]
[346973335,1735444238409,-500.0,9.996e-05,2]
[346973337,1735444238419,-500.0,9.996e-05,2]
[346973339,1735444238429,-500.0,9.996e-05,2]
[346973341,1735444238438,-500.0,9.996e-05,2]
[346973343,1735444238448,-500.0,9.996e-05,2]
[346973345,1735444238457,-500.0,9.996e-05,2]
[346973347,1735444238467,-500.0,9.996e-05,2]
[346973349,1735444238477,-464.38,9.996e-05,2]
[346973351,1735444238487,-500.0,9.996e-05,2]
[346973353,1735444238497,-193.48154941,9.996e-05,2]
[346973355,1735444238506,-393.29133317,9.996e-05,2]
[346973357,1735444238516,-378.8064379,9.997e-05,2]
[346973359,1735444238525,-500.0,9.997e-05,2]
[346973361,1735444238535,-514.50364411,9.997e-05,2]
[346973363,1735444238544,-500.0,9.997e-05,2]
[346973365,1735444238553,-500.0,9.997e-05,2]
[346973367,1735444238563,-500.0,9.997e-05,2]
[346973369,1735444238572,-501.79148804,9.997e-05,2]
[346973371,1735444238582,-500.0,9.997e-05,2]
[346973373,1735444238591,-500.0,9.997e-05,2]
[346973375,1735444238600,-500.0,9.997e-05,2]
[346973376,1735444238609,-504.32498789,9.997e-05,2]
[346973377,1735444238619,-508.23218981,9.997e-05,2]
[346973378,1735444238629,-500.04279218,9.997e-05,2]
[346973379,1735444238638,-498.41617976,9.997e-05,2]
[346973380,1735444238647,-500.0,9.997e-05,2]
[346973381,1735444238656,-500.0,9.997e-05,2]
[346973382,1735444238665,-500.0,9.997e-05,2]
[346973383,1735444238675,-500.0,9.997e-05,2]
[346973384,1735444238684,-422.49229537,9.997e-05,2]
[346973385,1735444238694,-500.0,9.997e-05,2]
[346973386,1735444238704,-500.0,9.997e-05,2]
[346973387,1735444238714,-500.28488845,9.997e-05,2]
[346973388,1735444238723,-500.0,9.997e-05,2]
[346973389,1735444238732,-500.0,9.997e-05,2]
[346973390,1735444238742,-500.0,9.997e-05,2]
[346973391,1735444238751,-500.89390375,9.997e-05,2]
[346973392,1735444238760,-500.0,9.997e-05,2]
[346973393,1735444238770,-500.0,9.997e-05,2]
[346973394,1735444238779,-516.00944989,9.997e-05,2]
[346973395,1735444238789,-500.0,9.997e-05,2]
[346973396,1735444238798,-500.0,9.997e-05,2]
[346973397,1735444238807,-500.0,9.997e-05,2]
[346973398,1735444238817,-500.0,9.997e-05,2]
[346973399,1735444238826,-500.0,9.997e-05,2]
[346973400,1735444238836,-500.0,9.997e-05,2]
[346973401,1735444238845,-504.25281217,9.997e-05,2]
[346973402,1735444238854,-500.75640232,9.997e-05,2]
[346973403,1735444238864,-502.87977265,9.997e-05,2]
[346973404,1735444238873,-500.0,9.997e-05,2]
[346973405,1735444238882,-500.0,9.997e-05,2]
[346973406,1735444238891,-501.67076145,9.997e-05,2]
[346973407,1735444238901,-502.11991503,9.997e-05,2]
[346973408,1735444238910,-500.0,9.997e-05,2]
[346973409,1735444238920,-500.99424466,9.997e-05,2]
[346973410,1735444238930,-370.17518389,9.997e-05,2]
[346973411,1735444238939,-500.4655764,9.997e-05,2]
[346973412,1735444238948,-500.0,9.997e-05,2]
[346973413,1735444238958,-502.38540048,9.997e-05,2]
[346973414,1735444238968,-500.0,9.997e-05,2]
[346973415,1735444238978,-503.0499548,9.997e-05,2]
[346973416,1735444238988,-514.25128633,9.997e-05,2]
[346973417,1735444238997,-500.0,9.997e-05,2]
[346973418,1735444239006,-500.0,9.997e-05,2]
[346973419,1735444239015,-501.51837931,9.997e-05,2]
[346973420,1735444239024,-501.11395955,9.997e-05,2]
[346973421,1735444239034,-502.36822896,9.997e-05,2]
[346973422,1735444239043,-500.0,9.997e-05,2]
[346973423,1735444239053,-503.37749389,9.997e-05,2]
[346973424,1735444239063,-500.0,9.997e-05,2]
[346973425,1735444239072,-500.79727996,9.997e-05,2]
[346973426,1735444239082,-500.0,9.997e-05,2]
[346973427,1735444239091,-500.0,9.997e-05,2]
[346973428,1735444239100,-500.0,9.997e-05,2]
[346973429,1735444239110,-500.0,9.997e-05,2]
[346973430,1735444239119,-500.0,9.997e-05,2]
[346973431,1735444239128,-500.0,9.997e-05,2]
[346973432,1735444239138,-500.0,9.997e-05,2]
[346973433,1735444239147,-500.0,9.997e-05,2]
[346973434,1735444239157,-500.0,9.997e-05,2]
[346973435,1735444239167,-500.0,9.997e-05,2]
[346973436,1735444239176,-500.0,9.997e-05,2]
[346973437,1735444239185,-502.41595535,9.997e-05,2]
[346973438,1735444239195,-500.0,9.997e-05,2]
[346973439,1735444239204,-500.0,9.997e-05,2]
[346973440,1735444239213,-500.0,9.997e-05,2]
[346973441,1735444239223,-502.38275448,9.997e-05,2]
[346973442,1735444239232,-502.26800183,9.997e-05,2]
[346973443,1735444239242,-500.0,9.997e-05,2]
[346973444,1735444239251,-500.0,9.997e-05,2]
[346973445,1735444239261,-500.0,9.997e-05,2]
[346973446,1735444239270,-501.18248821,9.997e-05,2]
[346973447,1735444239279,-510.83922074,9.997e-05,2]
[346973448,1735444239291,-500.0,9.997e-05,2]
[346973449,1735444239302,-500.0,9.997e-05,2]
[346973450,1735444239311,-502.00709817,9.997e-05,2]
[346973451,1735444239320,-500.0,9.997e-05,2]
[346973452,1735444239331,-471.10295125,9.997e-05,2]
[346973453,1735444239340,-500.0,9.997e-05,2]
[346973454,1735444239349,-500.0,9.997e-05,2]
[346973455,1735444239359,-500.0,9.997e-05,2]
[346973456,1735444239368,-500.0,9.997e-05,2]
[346973457,1735444239378,-502.53736238,9.997e-05,2]
[346973458,1735444239394,-503.00490823,9.997e-05,2]
[346973459,1735444239403,-500.0,9.997e-05,2]
[346973460,1735444239413,-501.12886728,9.997e-05,2]
[346973461,1735444239422,-500.0,9.997e-05,2]
[346973462,1735444239432,-501.22157474,9.997e-05,2]
[346973463,1735444239442,-500.51573775,9.997e-05,2]
[346973464,1735444239452,-500.71168194,9.997e-05,2]
[346973465,1735444239461,-491.43880168,9.997e-05,2]
[346973466,1735444239471,-500.0,9.997e-05,2]
[346973467,1735444239481,-500.0,9.997e-05,2]
[346973468,1735444239490,-501.84400219,9.997e-05,2]
[346973469,1735444239500,-501.7410334,9.997e-05,2]
[346973470,1735444239509,-500.0,9.997e-05,2]
[346973471,1735444239519,-500.0,9.997e-05,2]
[346973472,1735444239529,-500.0,9.997e-05,2]
[346973473,1735444239538,-501.58014288,9.997e-05,2]
[346973474,1735444239547,-501.06621816,9.997e-05,2]
[346973475,1735444239557,-500.0,9.997e-05,2]
[346973476,1735444239566,-500.0,9.997e-05,2]
[346973477,1735444239575,-500.0,9.997e-05,2]
[346973478,1735444239585,-500.0,9.997e-05,2]
[346973479,1735444239594,-500.0,9.997e-05,2]
[346973480,1735444239604,-500.0,9.997e-05,2]
[346973481,1735444239613,-500.0,9.997e-05,2]
[346973482,1735444239623,-501.30693925,9.997e-05,2]
[346973483,1735444239632,-501.25049761,9.997e-05,2]
[346973484,1735444239641,-500.0,9.997e-05,2]
[346973485,1735444239651,-605.91652712,9.997e-05,2]
[346973486,1735444239661,-500.0,9.997e-05,2]
[346973487,1735444239670,-500.0,9.997e-05,2]
[346973488,1735444239680,-500.0,9.997e-05,2]
[346973489,1735444239690,-500.0,9.997e-05,2]
[346973490,1735444239699,-500.0,9.997e-05,2]
[346973491,1735444239709,-501.45052007,9.997e-05,2]
[346973492,1735444239718,-500.0,9.997e-05,2]
[346973493,1735444239728,-500.0,9.997e-05,2]
[346973494,1735444239738,-500.0,9.997e-05,2]
[346973495,1735444239748,-500.0,9.997e-05,2]
[346973496,1735444239757,-504.28284588,9.997e-05,2]
[346973497,1735444239767,-500.0,9.997e-05,2]
[346973498,1735444239777,-500.0,9.997e-05,2]
[346973499,1735444239786,-500.0,9.997e-05,2]
[346973500,1735444239795,-500.0,9.997e-05,2]
[346973501,1735444239805,-500.0,9.997e-05,2]
[346973502,1735444239814,-507.95446986,9.997e-05,2]
[346973503,1735444239824,-500.0,9.997e-05,2]
[346973504,1735444239834,-500.47393398,9.997e-05,2]
[346973506,1735444239843,-500.0,9.997e-05,2]
[346973508,1735444239853,-500.0,9.997e-05,2]
[346973510,1735444239863,-501.45539165,9.997e-05,2]
[346973512,1735444239873,-500.0,9.997e-05,2]
[346973515,1735444239883,-501.91856114,9.997e-05,2]
[346973516,1735444239893,-503.57871914,9.997e-05,2]
[346973517,1735444239903,-500.0,9.997e-05,2]
[346973518,1735444239912,-501.81609562,9.997e-05,2]
[346973519,1735444239921,-231.82466179,9.997e-05,2]
[346973520,1735444239930,-502.94539061,9.997e-05,2]
[346973521,1735444239940,-501.93780711,9.997e-05,2]
[346973522,1735444239950,-500.0,9.997e-05,2]
[346973523,1735444239959,-501.66892799,9.997e-05,2]
[346973524,1735444239968,-500.0,9.997e-05,2]
[346973525,1735444239978,-501.35920233,9.997e-05,2]
[346973526,1735444239987,-500.0,9.997e-05,2]
[346973527,1735444239996,-500.0,9.997e-05,2]
[346973528,1735444240004,-500.0,9.997e-05,2]
[346973529,1735444240014,-500.0,9.997e-05,2]
[346973530,1735444240023,-503.72750804,9.997e-05,2]
[346973531,1735444240032,-520.66,9.997e-05,2]
[346973532,1735444240041,-502.35139656,9.997e-05,2]
[346973533,1735444240050,-500.0,9.997e-05,2]
[346973534,1735444240060,-500.0,9.997e-05,2]
[346973535,1735444240069,-501.3379503,9.997e-05,2]
[346973536,1735444240078,-504.32264506,9.997e-05,2]
[346973537,1735444240089,-504.19856414,9.997e-05,2]
[346973538,1735444240099,-502.52809694,9.997e-05,2]
[346973539,1735444240108,-500.0,9.997e-05,2]
[346973540,1735444240117,-179.76805965,9.997e-05,2]
[346973541,1735444240126,-507.86195965,9.997e-05,2]
[346973543,1735444240135,-501.44090766,9.997e-05,2]
[346973544,1735444240144,-502.49829314,9.997e-05,2]
[346973545,1735444240153,-502.62472225,9.997e-05,2]
[346973546,1735444240163,-500.0,9.997e-05,2]
[346973547,1735444240173,-500.0,9.997e-05,2]
[346973548,1735444240183,-503.51894764,9.997e-05,2]
[346973549,1735444240192,-501.80386534,9.997e-05,2]
[346973550,1735444240201,-503.77461566,9.997e-05,2]
[346973551,1735444240211,-500.0,9.997e-05,2]
[346973552,1735444240220,-549.5358771,9.997e-05,2]
[346973553,1735444240229,-502.47246897,9.997e-05,2]
[346973554,1735444240239,-500.0,9.997e-05,2]
[346973555,1735444240248,-500.0,9.997e-05,2]
[346973556,1735444240258,-504.83110742,9.997e-05,2]
[346973557,1735444240267,-500.79535624,9.997e-05,2]
[346973558,1735444240276,-500.0,9.997e-05,2]
[346973560,1735444240287,-503.83114106,9.997e-05,2]
[346973562,1735444240298,-500.0,9.997e-05,2]
[346973563,1735444240307,-503.45560666,9.997e-05,2]
[346973565,1735444240317,-501.17507017,9.997e-05,2]
[346973566,1735444240327,-502.28718536,9.997e-05,2]
[346973567,1735444240336,-501.49843373,9.997e-05,2]
[346973568,1735444240346,-502.02037776,9.997e-05,2]
[346973569,1735444240437,-504.59709228,9.997e-05,2]
[346973570,1735444240447,-500.0,9.997e-05,2]
[346973571,1735444240457,-509.93255336,9.997e-05,2]
[346973572,1735444240467,-500.0,9.997e-05,2]
[346973573,1735444240476,-500.0,9.997e-05,2]
[346973574,1735444240486,-500.0,9.997e-05,2]
[346973575,1735444240496,-500.0,9.997e-05,2]
[346973576,1735444240505,-503.95531087,9.997e-05,2]
[346973577,1735444240515,-504.41213614,9.997e-05,2]
[346973578,1735444240525,-375.52818558,9.997e-05,2]
[346973579,1735444240534,-910.39744268,9.997e-05,2]
[346973580,1735444240543,-1316.13,9.997e-05,2]
[346973581,1735444240552,-500.0,9.997e-05,2]
[346973582,1735444240562,-500.0,9.997e-05,2]
[346973583,1735444240571,-503.61550803,9.997e-05,2]
[346973584,1735444240581,-503.49462136,9.997e-05,2]
[346973585,1735444240591,-500.0,9.997e-05,2]
[346973586,1735444240601,-694.59,9.997e-05,2]
[346973587,1735444240611,-503.63292405,9.997e-05,2]
[346973588,1735444240620,-500.0,9.997e-05,2]
[346973589,1735444240629,-500.0,9.997e-05,2]
[346973590,1735444240639,-504.06544494,9.998e-05,2]
[346973591,1735444240649,-503.7355724,9.998e-05,2]
[346973592,1735444240658,-612.03852094,9.998e-05,2]
[346973593,1735444240667,-500.70269243,9.998e-05,2]
[346973594,1735444240676,-500.0,9.998e-05,2]
[346973595,1735444240685,-357.8579733,9.998e-05,2]
[346973596,1735444240694,-500.0,9.998e-05,2]
[346973597,1735444240704,-501.04970415,9.998e-05,2]
[346973598,1735444240713,-416.32345979,9.998e-05,2]
[346973599,1735444240722,-500.0,9.998e-05,2]
[346973600,1735444240732,-500.39833421,9.998e-05,2]
[346973601,1735444240742,-500.0,9.998e-05,2]
[346973602,1735444240752,-500.0,9.998e-05,2]
[346973603,1735444240761,-500.0,9.998e-05,2]
[346973604,1735444240771,-500.0,9.998e-05,2]
[346973605,1735444240781,-500.0,9.998e-05,2]
[346973606,1735444240790,-500.52215709,9.998e-05,2]
[346973607,1735444240799,-500.0,9.998e-05,2]
[346973608,1735444240809,-500.0,9.998e-05,2]
[346973609,1735444240818,-500.0,9.998e-05,2]
[346973610,1735444240827,-500.0,9.998e-05,2]
[346973611,1735444240837,-500.0,9.998e-05,2]
[346973612,1735444240846,-500.0,9.998e-05,2]
[346973613,1735444240856,-503.60783554,9.998e-05,2]
[346973614,1735444240865,-500.0,9.998e-05,2]
[346973615,1735444240874,-500.0,9.998e-05,2]
[346973616,1735444240883,-500.0,9.999e-05,2]
[346973617,1735444240893,-500.0,9.999e-05,2]
[346973618,1735444240902,-500.0,9.999e-05,2]
[346973619,1735444240911,-500.0,9.999e-05,2]
[346973620,1735444240920,-500.0,9.999e-05,2]
[346973621,1735444240930,-500.0,9.999e-05,2]
[346973622,1735444240940,-500.0,9.999e-05,2]
[346973623,1735444240949,-259.98573773,9.999e-05,2]
[346973624,1735444240958,-500.0,9.999e-05,2]
[346973625,1735444240968,-500.0,9.999e-05,2]
[346973626,1735444240978,-500.0,9.999e-05,2]
[346973627,1735444240987,-500.0,9.999e-05,2]
[346973628,1735444240996,-544.18718719,9.999e-05,2]
[346973629,1735444241005,-500.0,9.999e-05,2]
[346973630,1735444241014,-500.0,9.999e-05,2]
[346973631,1735444241024,-500.0,9.999e-05,2]
[346973632,1735444241034,-500.0,9.999e-05,2]
[346973633,1735444241043,-500.0,9.999e-05,2]
[346973634,1735444241052,-500.0,9.999e-05,2]
[346973635,1735444241061,-500.0,9.999e-05,2]
[346973636,1735444241071,-500.0,9.999e-05,2]
[346973637,1735444241080,-500.0,9.999e-05,2]
[346973638,1735444241090,-500.0,9.999e-05,2]